fUST/lending_fUST_20260314
["ID","MTS","AMOUNT","RATE_DAILY","PERIOD"]
[408345138,1773468647534,-163.487195,0.00016438,2]
[408345139,1773468647547,-163.487195,0.00016438,2]
[408345140,1773468647556,-163.487195,0.00016438,2]
[408345141,1773468647565,-163.487195,0.00016438,2]
[408345142,1773468647575,-163.487195,0.00016438,2]
[408345143,1773468647585,-163.487195,0.00016438,2]
[408345144,1773468647594,-163.487195,0.00016438,2]
[408345145,1773468647603,-163.487195,0.00016438,2]
[408345146,1773468647614,-163.487195,0.00016438,2]
[408345147,1773468647623,-163.48719781,0.00016438,2]
[408345148,1773468647632,-151.0,0.00016438,2]
[408345149,1773468647641,-151.0,0.00016438,2]
[408345150,1773468647650,-151.0,0.00016438,2]
[408345151,1773468647659,-151.0,0.00016438,2]
[408345152,1773468647668,-151.0,0.00016438,2]
[408345153,1773468647677,-151.0,0.00016438,2]
[408345154,1773468647685,-151.0,0.00016438,2]
[408345155,1773468647694,-151.0,0.00016438,2]
[408345156,1773468647703,-151.0,0.00016438,2]
[408345157,1773468647712,-151.0,0.00016438,2]
[408345158,1773468647721,-151.0,0.00016438,2]
[408345159,1773468647730,-274.99359,0.00016438,2]
[408345160,1773468647739,-165.47198604,0.00016438,2]
[408345161,1773468647747,-1209.28227026,0.00016438,2]
[408345162,1773468647756,-2000.0,0.00016438,2]
[408345163,1773468647766,-3000.0,0.00016438,2]
[408345164,1773468647774,-2500.0,0.00016438,2]
[408345165,1773468647783,-3000.0,0.00016438,2]
[408345166,1773468647792,-3000.0,0.00016438,2]
[408345167,1773468647800,-3000.0,0.00016438,2]
[408345168,1773468647809,-3000.0,0.00016438,2]
[408345169,1773468647818,-3000.0,0.00016438,2]
[408345170,1773468647826,-3000.0,0.0001644,2]
[408345171,1773468647835,-500.0,0.00016443,2]
[408345172,1773468647843,-3000.0,0.0001645,2]
[408345173,1773468647852,-3000.0,0.0001646,2]
[408345174,1773468647861,-3000.0,0.0001647,2]
[408345175,1773468647870,-3000.0,0.0001648,2]
[408345176,1773468647879,-3000.0,0.0001649,2]
[408345177,1773468647888,-3000.0,0.000165,2]
[408345178,1773468647896,-3000.0,0.0001651,2]
[408345179,1773468647905,-3000.0,0.0001652,2]
[408345180,1773468647914,-3000.0,0.0001653,2]
[408345181,1773468647922,-3000.0,0.0001654,2]
[408345182,1773468647931,-3000.0,0.0001655,2]
[408345183,1773468647940,-3000.0,0.0001656,2]
[408345184,1773468647949,-4600.098997,0.0001657,2]
[408345185,1773468647957,-28138.89550292,0.00016611,2]
[408345186,1773468647966,-500.0,0.00016679,2]
[408345187,1773468647975,-524.8,0.00016712,2]
[408345188,1773468647985,-171.06244212,0.00016717,7]
[408345189,1773468647994,-295.40307579,0.00016717,7]
[408345190,1773468648002,-250.0,0.00016745,14]
[408345191,1773468648011,-250.0,0.00016745,14]
[408345192,1773468648020,-250.0,0.00016745,14]
[408345193,1773468648030,-250.0,0.00016745,14]
[408345194,1773468648040,-258.0,0.00016745,14]
[408345195,1773468648049,-246.28711609,0.00016849,3]
[408345196,1773468648058,-2000.0,0.000169,2]
[408345198,1773468648067,-500.0,0.0001691,2]
[408345199,1773468648076,-1000.0,0.00016919,2]
[408345200,1773468648084,-1000.0,0.00016919,2]
[408345201,1773468648093,-1000.0,0.00016919,2]
[408345202,1773468648102,-715.0,0.00016919,2]
[408345203,1773468648111,-186.6573915,0.00016935,2]
[408345204,1773468648121,-290.8061516,0.00016936,7]
[408345205,1773468648130,-524.8,0.00016986,2]
[408345206,1773468648138,-250.0,0.00016986,2]
[408345207,1773468648148,-3500.0,0.00016986,2]
[408345208,1773468648157,-323.29644751,0.00016986,2]
[408345209,1773468648166,-3500.0,0.00016986,2]
[408345210,1773468648175,-3500.0,0.00016986,2]
[408345211,1773468648183,-3500.0,0.00016986,2]
[408345212,1773468648193,-3500.0,0.00016986,2]
[408345213,1773468648201,-2913.0,0.00017,7]
[408345214,1773468648211,-10000.0,0.00017,14]
[408345215,1773468648220,-1000.0,0.00017,17]
[408345216,1773468648228,-10000.0,0.00017,14]
[408345217,1773468648237,-27676.37568489,0.00017,2]
[408345218,1773468648246,-112312.23192112,0.00017,2]
[408345219,1773468648255,-198.0,0.00017,12]
[408345220,1773468648263,-270.83333333,0.00017,7]
[408345221,1773468648272,-447.56910417,0.0001702,30]
[408345222,1773468648281,-500.0,0.00017068,2]
[408345223,1773468648290,-800.0,0.00017169,5]
[408345224,1773468648298,-290.8061516,0.0001721,7]
[408345225,1773468648307,-154.72190936,0.00017231,30]
[408345226,1773468648316,-524.8,0.0001726,2]
[408345227,1773468648325,-4671.43596884,0.00017311,2]
[408345228,1773468648333,-524.8,0.00017534,2]
[408345229,1773468648342,-350.0,0.00017534,2]
[408345230,1773468648351,-2702.73416609,0.00017534,2]
[408345231,1773468648360,-2547.3746733,0.00017534,2]
[408345232,1773468648369,-4000.0,0.00017534,2]
[408345233,1773468648378,-4000.0,0.00017534,2]
[408345234,1773468648387,-1951.81565957,0.00017534,2]
[408345235,1773468648396,-242.33845967,0.00017539,7]
[408345236,1773468648405,-2153.26272644,0.000176,2]
[408345237,1773468648414,-154.18,0.00017729,2]
[408345238,1773468648423,-200.0,0.0001773,7]
[408345239,1773468648432,-200.0,0.0001773,7]
[408345240,1773468648441,-200.0,0.0001773,7]
[408345241,1773468648450,-200.0,0.0001773,7]
[408345242,1773468648459,-229.0,0.0001773,7]
[408345243,1773468648469,-447.56910417,0.00017778,60]
[408345244,1773468648478,-524.8,0.00017808,2]
[408345245,1773468648488,-150.0,0.00017808,2]
[408345246,1773468648497,-2000.0,0.000179,2]
[408345247,1773468648506,-29526.63547422,0.00017902,2]
[408345248,1773468648516,-639.59221368,0.00017943,2]
[408345249,1773468648525,-190.0,0.00017945,3]
[408345250,1773468648534,-12910.64,0.00018,2]
[408345251,1773468648546,-10000.0,0.00018,7]
[408345252,1773468648556,-10000.0,0.00018,10]
[408345253,1773468648566,-1000.0,0.00018,7]
[408345254,1773468648576,-7361.54,0.00018,2]
[408345255,1773468648587,-200.0,0.00018,12]
[408345256,1773468648597,-200.0,0.00018,12]
[408345257,1773468648607,-500.0,0.00018081,2]
[408345258,1773468648618,-524.8,0.00018082,2]
[408345259,1773468648628,-450.0,0.00018082,2]
[408345260,1773468648637,-1255.40368908,0.00018082,2]
[408345261,1773468648647,-4500.0,0.00018082,2]
[408345262,1773468648657,-943.42145516,0.00018143,60]
[408345263,1773468648667,-170.76713479,0.00018253,60]
[408345264,1773468648679,-1288.6131,0.000183,2]
[408345265,1773468648689,-437.0,0.00018339,2]
[408345266,1773468648698,-183.0,0.00018339,2]
[408345267,1773468648708,-524.8,0.00018356,2]
[408345268,1773468648718,-250.0,0.00018356,2]
[408345269,1773468648727,-1000.0,0.00018493,2]
[408345270,1773468648737,-759.936029,0.00018493,2]
[408345271,1773468648747,-196.130672,0.00018496,2]
[408345272,1773468648757,-943.42145516,0.00018514,60]
[408345273,1773468648766,-447.56910417,0.00018535,60]
[408345274,1773468648776,-1000.0,0.00018611,2]
[408345275,1773468648787,-1000.0,0.00018611,2]
[408345276,1773468648798,-1000.0,0.00018611,2]
[408345277,1773468648808,-524.8,0.0001863,2]
[408345278,1773468648818,-662.4825346,0.0001863,2]
[408345279,1773468648829,-5000.0,0.0001863,2]
[408345280,1773468648838,-500.0,0.0001873,2]
[408345281,1773468648848,-5000.0,0.00018768,2]
[408345282,1773468648858,-943.42145516,0.00018884,60]
[408345283,1773468648867,-12291.30608336,0.00018886,2]
[408345284,1773468648877,-2000.0,0.000189,2]
[408345285,1773468648887,-524.8,0.00018904,2]
[408345286,1773468648896,-350.0,0.00018904,2]
[408345287,1773468648905,-154.72190936,0.00018989,60]
[408345288,1773468648914,-8544.0,0.00019,2]
[408345289,1773468648924,-10000.0,0.00019,14]
[408345290,1773468648933,-2900.0,0.00019,4]
[408345291,1773468648943,-1000.0,0.00019,19]
[408345292,1773468648952,-24601.32808383,0.00019,2]
[408345293,1773468648961,-2603.49,0.00019,2]
[408345294,1773468648971,-360.10126651,0.00019,20]
[408345295,1773468648980,-1173.931361,0.00019,2]
[408345296,1773468648990,-192.0,0.00019041,3]
[408345297,1773468648999,-524.8,0.00019178,2]
[408345298,1773468649008,-512.3666,0.00019178,2]
[408345299,1773468649017,-512.3666,0.00019178,2]
[408345300,1773468649026,-512.3666,0.00019178,2]
[408345301,1773468649036,-512.3666,0.00019178,2]
[408345302,1773468649045,-512.3666,0.00019178,2]
[408345303,1773468649054,-512.3666,0.00019178,2]
[408345304,1773468649066,-512.3666,0.00019178,2]
[408345305,1773468649075,-512.3666,0.00019178,2]
[408345306,1773468649085,-512.3666,0.00019178,2]
[408345307,1773468649095,-512.3666,0.00019178,2]
[408345308,1773468649105,-512.3666,0.00019178,2]
[408345309,1773468649114,-512.3666,0.00019178,2]
[408345310,1773468649123,-512.3666,0.00019178,2]
[408345311,1773468649133,-167.54,0.00019178,2]
[408345312,1773468649145,-512.36,0.00019178,2]
[408345313,1773468649154,-512.36,0.00019178,2]
[408345314,1773468649164,-512.3666,0.00019178,2]
[408345315,1773468649176,-512.3666,0.00019178,2]
[408345316,1773468649187,-512.3666,0.00019178,2]
[408345317,1773468649197,-512.3666,0.00019178,2]
[408345318,1773468649207,-512.3666,0.00019178,2]
[408345319,1773468649216,-512.3666,0.00019178,2]
[408345320,1773468649224,-200.0,0.00019178,2]
[408345321,1773468649234,-512.3666,0.00019178,2]
[408345322,1773468649244,-400.03,0.00019178,2]
[408345323,1773468649253,-512.3666,0.00019178,2]
[408345324,1773468649263,-512.3666,0.00019178,2]
[408345325,1773468649273,-512.3666,0.00019178,2]
[408345326,1773468649282,-512.3666,0.00019178,2]
[408345327,1773468649291,-512.3666,0.00019178,2]
[408345328,1773468649300,-300.0,0.00019178,2]
[408345329,1773468649310,-300.0,0.00019178,2]
[408345330,1773468649319,-300.0,0.00019178,2]
[408345331,1773468649328,-300.0,0.00019178,2]
[408345332,1773468649338,-300.0,0.00019178,2]
[408345333,1773468649347,-300.0,0.00019178,2]
[408345334,1773468649357,-300.0,0.00019178,2]
[408345335,1773468649367,-300.0,0.00019178,2]
[408345336,1773468649376,-300.0,0.00019178,2]
[408345337,1773468649386,-300.0,0.00019178,2]
[408345338,1773468649397,-300.0,0.00019178,2]
[408345339,1773468649407,-300.0,0.00019178,2]
[408345340,1773468649416,-300.0,0.00019178,2]
[408345341,1773468649426,-300.0,0.00019178,2]
[408345342,1773468649435,-300.0,0.00019178,2]
[408345343,1773468649445,-300.0,0.00019178,2]
[408345344,1773468649454,-300.0,0.00019178,2]
[408345345,1773468649464,-300.0,0.00019178,2]
[408345346,1773468649474,-300.0,0.00019178,2]
[408345347,1773468649484,-300.0,0.00019178,2]
[408345348,1773468649493,-300.0,0.00019178,2]
[408345349,1773468649504,-300.0,0.00019178,2]
[408345350,1773468649516,-300.0,0.00019178,2]
[408345351,1773468649528,-300.0,0.00019178,2]
[408345352,1773468649541,-300.0,0.00019178,2]
[408345353,1773468649552,-300.0,0.00019178,2]
[408345354,1773468649561,-5500.0,0.00019178,2]
[408345355,1773468649571,-345.0,0.0001918,2]
[408345356,1773468649583,-500.0,0.00019181,2]
[408345357,1773468649593,-1594.96,0.000192,2]
[408345358,1773468649603,-3150.29492863,0.00019205,5]
[408345359,1773468649613,-943.42145516,0.00019254,60]
[408345360,1773468649623,-500.0,0.00019255,2]
[408345361,1773468649632,-447.56910417,0.00019293,60]
[408345362,1773468649643,-437.0,0.00019364,2]
[408345363,1773468649652,-219.97059893,0.00019386,60]
[408345364,1773468649662,-196.1323308,0.00019401,2]
[408345365,1773468649674,-179.348,0.00019422,2]
[408345366,1773468649683,-524.8,0.00019452,2]
[408345367,1773468649694,-450.0,0.00019452,2]
[408345368,1773468649704,-1000.0,0.000195,2]
[408345369,1773468649714,-1000.0,0.000195,2]
[408345370,1773468649723,-1000.0,0.000195,2]
[408345371,1773468649733,-1000.0,0.000195,2]
[408345372,1773468649743,-1000.0,0.000195,2]
[408345373,1773468649753,-1000.0,0.000195,2]
[408345374,1773468649763,-185.71581323,0.00019524,60]
[408345375,1773468649772,-473.93089892,0.00019563,2]
[408345376,1773468649783,-512.3634,0.00019589,3]
[408345377,1773468649793,-512.3666,0.00019589,3]
[408345378,1773468649802,-512.3666,0.00019589,3]
[408345379,1773468649812,-512.3666,0.00019589,3]
[408345380,1773468649821,-512.3666,0.00019589,3]
[408345381,1773468649831,-512.3634,0.00019589,3]
[408345382,1773468649841,-512.3666,0.00019589,3]
[408345383,1773468649850,-512.3666,0.00019589,3]
[408345384,1773468649860,-512.3666,0.00019589,3]
[408345385,1773468649870,-1000.0,0.0001962,5]
[408345386,1773468649879,-943.42145516,0.00019624,60]
[408345387,1773468649889,-1000.0,0.0001964,5]
[408345388,1773468649899,-1000.0,0.0001966,5]
[408345389,1773468649911,-220.20760524,0.00019677,60]
[408345390,1773468649922,-1000.0,0.0001968,5]
[408345391,1773468649933,-260.33010918,0.000197,60]
[408345392,1773468649943,-1000.0,0.000197,5]
[408345393,1773468649954,-207.2587819,0.00019718,60]
[408345394,1773468649963,-1000.0,0.0001972,5]
[408345395,1773468649972,-6000.0,0.00019726,2]
[408345396,1773468649982,-1000.0,0.0001974,5]
[408345397,1773468649991,-178.60936445,0.00019741,60]
[408345398,1773468650001,-1000.0,0.0001976,5]
[408345399,1773468650011,-1456.530769,0.0001976,5]
[408345400,1773468650021,-1000.0,0.0001978,5]
[408345401,1773468650031,-1000.0,0.0001978,5]
[408345402,1773468650040,-1000.0,0.000198,5]
[408345403,1773468650050,-1000.0,0.000198,5]
[408345404,1773468650059,-1000.0,0.0001982,5]
[408345405,1773468650069,-1000.0,0.0001982,5]
[408345406,1773468650079,-1000.0,0.0001984,5]
[408345407,1773468650089,-1000.0,0.0001984,5]
[408345408,1773468650098,-1000.0,0.0001986,5]
[408345409,1773468650107,-1000.0,0.0001986,5]
[408345410,1773468650117,-1000.0,0.0001988,5]
[408345411,1773468650127,-1000.0,0.0001988,5]
[408345412,1773468650136,-1594.96,0.000199,2]
[408345413,1773468650146,-2000.0,0.000199,2]
[408345414,1773468650156,-1000.0,0.000199,5]
[408345415,1773468650165,-1000.0,0.000199,5]
[408345416,1773468650174,-1000.0,0.0001992,5]
[408345417,1773468650184,-1000.0,0.0001992,5]
[408345418,1773468650193,-500.0,0.00019932,2]
[408345419,1773468650202,-1000.0,0.0001994,5]
[408345420,1773468650212,-1000.0,0.0001994,5]
[408345421,1773468650222,-694.94153986,0.00019943,2]
[408345422,1773468650231,-1000.0,0.0001996,5]
[408345423,1773468650241,-1000.0,0.0001996,5]
[408345424,1773468650250,-500.0,0.0001998,7]
[408345425,1773468650260,-1000.0,0.0001998,5]
[408345426,1773468650269,-1000.0,0.0001998,5]
[408345427,1773468650279,-536.0,0.0002,2]
[408345428,1773468650288,-14800.6329391,0.0002,2]
[408345429,1773468650298,-374.1422114,0.0002,2]
[408345430,1773468650307,-23000.0,0.0002,2]
[408345431,1773468650316,-204.11742571,0.0002,2]
[408345432,1773468650326,-507.93627617,0.0002,2]
[408345433,1773468650336,-18068.42383867,0.0002,2]
[408345434,1773468650346,-400.0,0.0002,30]
[408345435,1773468650356,-1000.0,0.0002,2]
[408345436,1773468650366,-206.92546562,0.0002,2]
[408345437,1773468650375,-759.0,0.0002,30]
[408345438,1773468650385,-500.0,0.0002,7]
[408345439,1773468650395,-155.95066152,0.0002,2]
[408345440,1773468650404,-24417.22832942,0.0002,30]
[408345441,1773468650414,-195.20735996,0.0002,2]
[408345442,1773468650423,-10722.0,0.0002,10]
[408345443,1773468650432,-1335.72195751,0.0002,2]
[408345444,1773468650442,-10000.0,0.0002,7]
[408345445,1773468650451,-8027.7,0.0002,2]
[408345446,1773468650461,-6003.02846808,0.0002,30]
[408345447,1773468650471,-500.0,0.0002,5]
[408345448,1773468650480,-500.0,0.0002,5]
[408345449,1773468650489,-168.76914162,0.0002,10]
[408345450,1773468650499,-779.0,0.0002,2]
[408345451,1773468650509,-25000.0,0.0002,5]
[408345452,1773468650518,-158.74177643,0.0002,2]
[408345453,1773468650528,-112900.56366492,0.0002,2]
[408345454,1773468650538,-493368.04225164,0.0002,2]
[408345455,1773468650549,-150.0,0.0002,2]
[408345456,1773468650559,-765.37011926,0.0002,2]
[408345457,1773468650569,-156676.00862699,0.0002,2]
[408345458,1773468650579,-3000.0,0.0002,2]
[408345459,1773468650590,-26390.28728293,0.0002,20]
[408345460,1773468650600,-318323.42587047,0.0002,2]
[408345461,1773468650609,-180616.81769739,0.0002,2]
[408345462,1773468650757,-2239.07457887,0.0002,2]
[408345463,1773468650769,-12625.23981826,0.0002,2]
[408345464,1773468650784,-161241.91815,0.0002,2]
[408345465,1773468650992,-10526.28662315,0.0002,2]
[408345467,1773468909810,474.0,0.0001938,120]
[408345468,1773468911058,474.0,0.00020349,120]
[408345469,1773468912516,474.0,0.00021366,120]
[408345470,1773468913765,474.0,0.00022435,120]
[408345471,1773468915017,474.0,0.00023557,120]
[408345472,1773468916494,474.0,0.00024734,120]
[408345473,1773468919253,202.77619219,0.000249,120]
[408345474,1773468921552,474.0,0.00025971,120]
[408345475,1773468925931,474.0,0.0002727,120]
[408345488,1773469206037,158.0,0.00020408,120]
[408345489,1773469207319,158.0,0.00021429,120]
[408345490,1773469208581,158.0,0.000225,120]
[408345491,1773469209826,158.0,0.00023625,120]
[408345492,1773469211063,158.0,0.00024806,120]
[408345493,1773469212331,158.0,0.00026047,120]
[408345495,1773469637134,-1659.82321704,4.65e-05,10]
[408345527,1773469831639,-2906.71867289,4.603e-05,10]
[408345529,1773469831648,-231.41497425,4.697e-05,2]
[408345531,1773469831657,-419.0,6.102e-05,2]
[408345533,1773469831667,-500.0,6.103e-05,2]
[408345535,1773469831677,-500.0,6.103e-05,2]
[408345537,1773469831687,-500.0,6.103e-05,2]
[408345539,1773469831696,-266.14308136,6.103e-05,2]
[408345540,1773469831704,-500.0,6.103e-05,2]
[408345541,1773469831714,-500.0,6.103e-05,2]
[408345542,1773469831723,-500.0,6.103e-05,2]
[408345543,1773469831735,-500.0,6.103e-05,2]
[408345544,1773469831744,-500.0,6.103e-05,2]
[408345545,1773469831753,-500.0,6.103e-05,2]
[408345546,1773469831763,-500.0,6.103e-05,2]
[408345547,1773469831772,-500.0,6.103e-05,2]
[408345548,1773469831781,-500.0,6.103e-05,2]
[408345549,1773469831791,-500.0,6.103e-05,2]
[408345550,1773469831801,-500.0,6.103e-05,2]
[408345551,1773469831810,-360.81922316,6.103e-05,2]
[408345552,1773469831820,-500.0,6.103e-05,2]
[408345553,1773469831830,-500.0,6.103e-05,2]
[408345554,1773469831839,-500.0,6.103e-05,2]
[408345555,1773469831848,-500.0,6.103e-05,2]
[408345556,1773469831858,-500.0,6.103e-05,2]
[408345557,1773469831867,-500.0,6.103e-05,2]
[408345558,1773469831876,-500.0,6.103e-05,2]
[408345559,1773469831886,-500.0,6.103e-05,2]
[408345560,1773469831895,-500.0,6.103e-05,2]
[408345561,1773469831904,-500.0,6.103e-05,2]
[408345562,1773469831914,-500.0,6.103e-05,2]
[408345563,1773469831923,-500.0,6.103e-05,2]
[408345564,1773469831933,-500.0,6.103e-05,2]
[408345565,1773469831942,-500.0,6.103e-05,2]
[408345566,1773469831951,-500.0,6.103e-05,2]
[408345567,1773469831960,-500.0,6.103e-05,2]
[408345568,1773469831970,-500.0,6.103e-05,2]
[408345569,1773469831979,-500.0,6.103e-05,2]
[408345570,1773469831988,-192.17291737,6.103e-05,2]
[408345669,1773469837950,-307.82708263,6.103e-05,2]
[408345670,1773469837958,-430.87428926,6.103e-05,2]
[408345671,1773469837970,-69.12571074,6.103e-05,2]
[408345676,1773469838223,-500.0,6.103e-05,2]
[408345677,1773469838237,-500.0,6.103e-05,2]
[408345678,1773469838246,-500.0,6.103e-05,2]
[408345679,1773469838256,-500.0,6.103e-05,2]
[408345680,1773469838266,-21.80563072,6.103e-05,2]
[408345681,1773469838278,-478.19436928,6.103e-05,2]
[408345682,1773469838290,-500.0,6.103e-05,2]
[408345683,1773469838301,-500.0,6.103e-05,2]
[408345684,1773469838311,-500.0,6.103e-05,2]
[408345685,1773469838322,-500.0,6.103e-05,2]
[408345686,1773469838332,-4.28902698,6.103e-05,2]
[408345687,1773469838345,-495.71097302,6.103e-05,2]
[408345688,1773469838355,-500.0,6.103e-05,2]
[408345689,1773469838366,-500.0,6.103e-05,2]
[408345690,1773469838375,-427.00095133,6.103e-05,2]
[408345691,1773469838389,-72.99904867,6.103e-05,2]
[408345692,1773469838399,-500.0,6.103e-05,2]
[408345693,1773469838409,-500.0,6.103e-05,2]
[408345694,1773469838422,-574.12380473,6.103e-05,2]
[408345695,1773469838431,-500.0,6.103e-05,2]
[408345696,1773469838442,-500.0,6.103e-05,2]
[408345697,1773469838452,-500.0,6.103e-05,2]
[408345698,1773469838461,-293.23552231,6.103e-05,2]
[408345699,1773469838474,-206.76447769,6.103e-05,2]
[408345700,1773469838483,-228.23552231,6.103e-05,2]
[408345780,1773469843076,-271.76447769,6.103e-05,2]
[408345781,1773469843086,-293.68552231,6.105e-05,2]
[408345789,1773469846158,-6.31447769,6.105e-05,2]
[408345790,1773469846170,-300.0,6.105e-05,2]
[408345791,1773469846180,-300.0,6.105e-05,2]
[408345792,1773469846190,-300.0,6.105e-05,2]
[408345793,1773469846199,-300.0,6.105e-05,2]
[408345794,1773469846208,-300.0,6.105e-05,2]
[408345795,1773469846218,-300.0,6.105e-05,2]
[408345796,1773469846227,-300.0,6.105e-05,2]
[408345797,1773469846236,-300.0,6.105e-05,2]
[408345798,1773469846246,-300.0,6.105e-05,2]
[408345799,1773469846257,-300.0,6.105e-05,2]
[408345800,1773469846266,-300.0,6.105e-05,2]
[408345801,1773469846275,-300.0,6.105e-05,2]
[408345802,1773469846285,-300.0,6.105e-05,2]
[408345803,1773469846295,-300.0,6.105e-05,2]
[408345804,1773469846305,-600.0,6.105e-05,2]
[408345805,1773469846314,-500.0,6.147e-05,2]
[408345806,1773469846323,-273.06966962,6.697e-05,2]
[408345807,1773469846333,-720.0,6.716e-05,2]
[408345808,1773469846344,-864.0,7.387e-05,2]
[408345809,1773469846354,-500.0,7.815e-05,2]
[408345810,1773469846364,-183.0,7.868e-05,2]
[408345811,1773469846373,-437.0,7.868e-05,2]
[408345812,1773469846382,-1000.0,8.126e-05,2]
[408345813,1773469846392,-500.0,8.219e-05,2]
[408345814,1773469846401,-500.0,8.219e-05,2]
[408345815,1773469846410,-500.0,8.219e-05,2]
[408345816,1773469846419,-500.0,8.219e-05,2]
[408345817,1773469846429,-500.0,8.219e-05,2]
[408345818,1773469846439,-500.0,8.219e-05,2]
[408345819,1773469846449,-500.0,8.219e-05,2]
[408345820,1773469846460,-500.0,8.219e-05,2]
[408345821,1773469846470,-500.0,8.219e-05,2]
[408345822,1773469846479,-500.0,8.219e-05,2]
[408345823,1773469846491,-500.0,8.219e-05,2]
[408345824,1773469846502,-594.93163253,8.219e-05,2]
[408345825,1773469846512,-500.0,8.219e-05,2]
[408345826,1773469846521,-631.96644759,8.219e-05,2]
[408345827,1773469846530,-500.0,8.219e-05,2]
[408345828,1773469846539,-500.0,8.219e-05,2]
[408345829,1773469846548,-500.0,8.219e-05,2]
[408345830,1773469846559,-500.0,8.219e-05,2]
[408345831,1773469846569,-500.0,8.219e-05,2]
[408345832,1773469846578,-500.0,8.219e-05,2]
[408345833,1773469846588,-500.0,8.219e-05,2]
[408345834,1773469846597,-500.0,8.219e-05,2]
[408345835,1773469846607,-500.0,8.219e-05,2]
[408345836,1773469846617,-500.0,8.219e-05,2]
[408345837,1773469846626,-500.0,8.219e-05,2]
[408345838,1773469846636,-500.0,8.219e-05,2]
[408345839,1773469846645,-500.0,8.219e-05,2]
[408345840,1773469846654,-500.0,8.219e-05,2]
[408345841,1773469846664,-500.0,8.219e-05,2]
[408345842,1773469846673,-500.0,8.219e-05,2]
[408345843,1773469846682,-500.0,8.219e-05,2]
[408345844,1773469846691,-550.0,8.219e-05,2]
[408345845,1773469846701,-500.0,8.219e-05,2]
[408345846,1773469846710,-500.0,8.219e-05,2]
[408345847,1773469846719,-200.0,8.219e-05,2]
[408345848,1773469846730,-314.72436499,8.697e-05,2]
[408345849,1773469846739,-160.0,8.793e-05,2]
[408345850,1773469846749,-572.5179733,8.811e-05,2]
[408345851,1773469846758,-1000.0,8.938e-05,2]
[408345852,1773469846767,-244.0,8.938e-05,2]
[408345853,1773469846776,-500.0,9.531e-05,2]
[408345854,1773469846785,-1000.0,9.832e-05,2]
[408345855,1773469846795,-492.0,9.832e-05,2]
[408345856,1773469846805,-500.0,0.00010597,2]
[408345857,1773469846815,-4651.01614018,0.00010603,2]
[408345858,1773469846825,-356.37906035,0.00010697,2]
[408345859,1773469846835,-1000.0,0.00010816,2]
[408345860,1773469846845,-791.0,0.00010816,2]
[408345861,1773469846854,-183.0,0.00010868,2]
[408345862,1773469846864,-437.0,0.00010868,2]
[408345863,1773469846873,-2905.2144998,0.00011084,2]
[408345864,1773469846883,-1000.0,0.00011897,2]
[408345865,1773469846893,-1000.0,0.00011897,2]
[408345866,1773469846902,-1776.69106158,0.0001215,2]
[408345867,1773469846911,-500.0,0.00012397,2]
[408345868,1773469846920,-353.591508,0.00012595,2]
[408345869,1773469846930,-398.03375572,0.00012697,2]
[408345870,1773469846939,-1751.78848835,0.000129,2]
[408345871,1773469846948,-1751.78848831,0.000129,2]
[408345872,1773469846958,-1751.78848831,0.000129,2]
[408345873,1773469846967,-1000.0,0.00013087,2]
[408345874,1773469846977,-1000.0,0.00013087,2]
[408345875,1773469846986,-579.0,0.00013087,2]
[408345876,1773469846995,-151.0,0.000133,2]
[408345877,1773469847005,-151.0,0.000135,2]